[Event "Szansa Chess Open 2022"]
[Site "Warsaw"]
[Date "2022.09.18"]
[Round "7"]
[White "Lewtak, Damian"]
[Black "Kozak, Antoni"]
[Result "1/2-1/2"]
[ECO "A04"]
[WhiteElo "2386"]
[BlackElo "2434"]
[Annotator "ChessBase"]
[PlyCount "226"]
[EventDate "2022.09.17"]
[EventCountry "POL"]
[SourceTitle "playchess.com"]
[Source "ChessBase"]
[SourceQuality "1"]
[TimeControl "900+10"]

1. Nf3 {[%emt 0:00:01]} c5 {[%emt 0:00:01]} 2. b3 {[%emt 0:00:02]} d5 {[%emt 0:00:20]} 3. e3 {[%emt 0:00:05]} Nc6 {[%emt 0:00:08]} 4. Bb2 {[%emt 0:00:17]} a6 {[%emt 0:00:01]} 5. d4 {[%emt 0:00:16]} cxd4 {[%emt 0:00:04]} 6. Nxd4 {[%emt 0:00:02]} Nf6 {[%emt 0:00:15]} 7. Be2 {[%emt 0:00:19]} e6 {[%emt 0:01:18]} 8. Nd2 {[%emt 0:00:35]} Bd6 {[%emt 0:00:11]} 9. c4 {[%emt 0:00:36]} O-O {[%emt 0:00:42]} 10. cxd5 {[%emt 0:00:19]} exd5 {[%emt 0:00:07]} 11. Nxc6 {[%emt 0:00:42]} bxc6 {[%emt 0:00:01]} 12. O-O {[%emt 0:00:11]} Re8 {[%emt 0:00:21]} 13. Rc1 {[%emt 0:00:39]} Bd7 {[%emt 0:00:04]} 14. Bf3 {[%emt 0:00:22]} Qe7 {[%emt 0:01:03]} 15. Re1 {[%emt 0:00:47]} Bb4 {[%emt 0:01:13]} 16. Bc3 {[%emt 0:00:34]} Ba3 {[%emt 0:00:13]} 17. Ra1 {[%emt 0:00:17]} Bf5 {[%emt 0:00:27]} 18. Nf1 {[%emt 0:00:19]} Ne4 {[%emt 0:00:09]} 19. Bxe4 {[%emt 0:00:05]} Bxe4 {[%emt 0:01:10]} 20. Ng3 {[%emt 0:00:03]} Bg6 {[%emt 0:00:02]} 21. Qg4 {[%emt 0:01:29]} Qe6 22. Qd4 {[%emt 0:00:04]} Bf8 {[%emt 0:00:36]} 23. Rad1 {[%emt 0:00:08]} f6 {[%emt 0:01:09]} 24. Bb4 {[%emt 0:00:35]} Bxb4 {[%emt 0:00:32]} 25. Qxb4 {[%emt 0:00:02]} a5 {[%emt 0:00:00]} 26. Qc5 {[%emt 0:00:13]} h5 {[%emt 0:00:26]} 27. h3 {[%emt 0:00:16]} a4 {[%emt 0:00:15]} 28. Ne2 {[%emt 0:01:10]} Be4 {[%emt 0:00:01]} 29. Nd4 {[%emt 0:00:26]} Qe5 {[%emt 0:00:01]} 30. f3 {[%emt 0:01:04]} Bf5 {[%emt 0:01:05]} 31. Nxc6 {[%emt 0:00:37]} Qc7 {[%emt 0:00:07]} 32. Qxd5+ {[%emt 0:00:41]} Be6 {[%emt 0:00:01]} 33. Qd6 {[%emt 0:00:34]} Qxd6 {[%emt 0:00:27]} 34. Rxd6 {[%emt 0:00:02]} axb3 {[%emt 0:00:01]} 35. axb3 {[%emt 0:00:01]} Bxb3 {[%emt 0:00:01]} 36. Rd2 {[%emt 0:00:17]} Bf7 {[%emt 0:00:32]} 37. Kf2 {[%emt 0:00:51]} Ra3 {[%emt 0:00:20]} 38. Nd4 {[%emt 0:00:21]} Rc8 {[%emt 0:00:17]} 39. Nf5 {[%emt 0:00:53]} Ra7 {[%emt 0:00:06]} 40. e4 {[%emt 0:00:32]} Be6 {[%emt 0:00:07]} 41. Ne3 {[%emt 0:00:18]} Rca8 {[%emt 0:00:13]} 42. h4 {[%emt 0:00:16]} Kf7 {[%emt 0:00:10]} 43. Rb1 {[%emt 0:00:14]} Rc8 {[%emt 0:00:19]} 44. Rb6 {[%emt 0:00:06]} Rca8 {[%emt 0:00:51]} 45. Kg3 {[%emt 0:00:33]} Re8 {[%emt 0:00:07]} 46. Rdb2 {[%emt 0:00:31]} Ree7 {[%emt 0:00:09]} 47. Rb8 {[%emt 0:00:12]} Ra3 {[%emt 0:00:01]} 48. Kf2 {[%emt 0:00:42]} Rd7 {[%emt 0:00:13]} 49. R8b7 {[%emt 0:00:15]} Rxb7 {[%emt 0:00:11]} 50. Rxb7+ {[%emt 0:00:02]} Kf8 {[%emt 0:00:01]} 51. Rb5 {[%emt 0:00:18]} Ra2+ {[%emt 0:00:02]} 52. Kg3 {[%emt 0:00:02]} Re2 {[%emt 0:00:18]} 53. Kf4 {[%emt 0:00:20]} g6 {[%emt 0:00:08]} 54. Rb7 {[%emt 0:01:18]} Bf7 {[%emt 0:00:09]} 55. Rb5 {[%emt 0:00:38]} Be6 {[%emt 0:00:50]} 56. g3 {[%emt 0:00:06]} Ke7 {[%emt 0:00:38]} 57. Rb7+ {[%emt 0:00:13]} Kf8 {[%emt 0:00:01]} 58. Nd5 {[%emt 0:00:49]} Bxd5 {[%emt 0:00:01]} 59. exd5 {[%emt 0:00:01]} Re5 {[%emt 0:00:01]} 60. d6 {[%emt 0:00:59]} Rd5 {[%emt 0:00:57]} 61. Rd7 {[%emt 0:00:02]} Ke8 {[%emt 0:00:04]} 62. Re7+ {[%emt 0:00:06]} Kf8 {[%emt 0:00:02]} 63. Rd7 {[%emt 0:00:01]} Ke8 {[%emt 0:00:01]} 64. Rg7 {[%emt 0:00:01]} Rxd6 {[%emt 0:00:01]} 65. Rxg6 {[%emt 0:00:18]} Kf7 {[%emt 0:00:01]} 66. Rh6 {[%emt 0:00:01]} Rd4+ {[%emt 0:00:09]} 67. Ke3 {[%emt 0:00:15]} Rd5 {[%emt 0:00:01]} 68. Rh7+ {[%emt 0:00:02]} Kg6 {[%emt 0:00:01]} 69. Ra7 {[%emt 0:00:01]} Re5+ {[%emt 0:00:01]} 70. Kf2 {[%emt 0:00:03]} Rb5 {[%emt 0:00:06]} 71. Ra2 {[%emt 0:00:04]} Rb4 {[%emt 0:00:03]} 72. Rd2 {[%emt 0:00:06]} Ra4 {[%emt 0:00:01]} 73. Ke3 {[%emt 0:00:05]} Rb4 74. Rd4 {[%emt 0:00:08]} Rb3+ {[%emt 0:00:01]} 75. Kf4 {[%emt 0:00:02]} Rb1 {[%emt 0:00:07]} 76. Ra4 {[%emt 0:00:18]} Rh1 {[%emt 0:00:14]} 77. Ra8 {[%emt 0:00:27]} Rf1 {[%emt 0:00:19]} 78. Rh8 {[%emt 0:00:35]} Rh1 {[%emt 0:00:11]} 79. Rg8+ {[%emt 0:00:20]} Kf7 {[%emt 0:00:02]} 80. Rb8 {[%emt 0:00:04]} Kg6 {[%emt 0:00:01]} 81. Rb2 {[%emt 0:00:01]} Rf1 {[%emt 0:00:09]} 82. Rh2 {[%emt 0:00:24]} Ra1 {[%emt 0:00:05]} 83. Rd2 {[%emt 0:00:28]} Ra4+ {[%emt 0:00:03]} 84. Ke3 {[%emt 0:00:03]} Ra3+ {[%emt 0:00:02]} 85. Rd3 {[%emt 0:00:11]} Ra1 {[%emt 0:00:06]} 86. Rb3 {[%emt 0:00:05]} Ra4 {[%emt 0:00:02]} 87. Rb2 {[%emt 0:00:09]} Ra3+ {[%emt 0:00:01]} 88. Kf2 {[%emt 0:00:01]} Ra4 {[%emt 0:00:01]} 89. Kg2 {[%emt 0:00:01]} Rc4 {[%emt 0:00:02]} 90. Kh3 {[%emt 0:00:11]} Rc3 91. Rf2 {[%emt 0:00:02]} Kf5 {[%emt 0:00:01]} 92. Kg2 {[%emt 0:00:04]} Ra3 {[%emt 0:00:02]} 93. Rd2 {[%emt 0:00:08]} Rb3 {[%emt 0:00:01]} 94. Rd5+ {[%emt 0:00:10]} Kg6 {[%emt 0:00:01]} 95. g4 {[%emt 0:00:05]} hxg4 {[%emt 0:00:01]} 96. fxg4 {[%emt 0:00:02]} Rb2+ {[%emt 0:00:00]} 97. Kf3 {[%emt 0:00:06]} Rb3+ {[%emt 0:00:01]} 98. Ke4 {[%emt 0:00:29]} Rb4+ {[%emt 0:00:01]} 99. Rd4 {[%emt 0:00:18]} Rb1 {[%emt 0:00:01]} 100. Rd6 {[%emt 0:00:45]} Rh1 {[%emt 0:00:05]} 101. h5+ {[%emt 0:00:22]} Kg5 {[%emt 0:00:01]} 102. Kf3 {[%emt 0:00:04]} Rf1+ {[%emt 0:00:02]} 103. Kg3 {[%emt 0:00:13]} Rg1+ {[%emt 0:00:02]} 104. Kf3 {[%emt 0:00:05]} Rxg4 {[%emt 0:00:16]} 105. Rxf6 {[%emt 0:00:04]} Ra4 {[%emt 0:00:07]} 106. Rb6 {[%emt 0:00:05]} Ra3+ {[%emt 0:00:01]} 107. Kf2 {[%emt 0:00:02]} Ra2+ {[%emt 0:00:01]} 108. Ke3 {[%emt 0:00:02]} Ra3+ {[%emt 0:00:01]} 109. Kd4 {[%emt 0:00:01]} Ra4+ {[%emt 0:00:00]} 110. Kc5 {[%emt 0:00:02]} Ra5+ {[%emt 0:00:01]} 111. Rb5 {[%emt 0:00:01]} Rxb5+ {[%emt 0:00:01]} 112. Kxb5 {[%emt 0:00:01]} Kh6 {[%emt 0:00:00]} 113. Kc5 {[%emt 0:00:01]} Kxh5 {[%emt 0:00:01]} 1/2-1/2

[Event "Szansa Chess Open 2022"]
[Site "Warsaw"]
[Date "2022.09.18"]
[Round "7"]
[White "Chomczyk, Marek"]
[Black "Kowalski, Igor"]
[Result "1/2-1/2"]
[ECO "B13"]
[WhiteElo "2327"]
[BlackElo "2344"]
[Annotator "ChessBase"]
[PlyCount "118"]
[EventDate "2022.09.17"]
[EventCountry "POL"]
[SourceTitle "playchess.com"]
[Source "ChessBase"]
[SourceQuality "1"]
[TimeControl "900+10"]

1. e4 {[%emt 0:00:02]} c6 {[%emt 0:00:01]} 2. d4 {[%emt 0:00:01]} d5 {[%emt 0:00:01]} 3. exd5 {[%emt 0:00:02]} cxd5 {[%emt 0:00:01]} 4. Nf3 {[%emt 0:00:01]} Nc6 {[%emt 0:00:01]} 5. Bb5 {[%emt 0:00:02]} Nf6 {[%emt 0:00:04]} 6. Ne5 {[%emt 0:00:01]} Bd7 {[%emt 0:00:02]} 7. Nxd7 {[%emt 0:00:02]} Qxd7 {[%emt 0:00:01]} 8. c3 {[%emt 0:00:01]} e6 {[%emt 0:00:02]} 9. O-O {[%emt 0:00:20]} Bd6 10. Nd2 {[%emt 0:00:12]} O-O {[%emt 0:00:05]} 11. Re1 {[%emt 0:00:04]} Rad8 {[%emt 0:00:21]} 12. Nf3 {[%emt 0:04:34]} Ne4 {[%emt 0:00:05]} 13. Bg5 {[%emt 0:02:06]} Rde8 {[%emt 0:02:11]} 14. Bd3 {[%emt 0:01:24]} f5 {[%emt 0:00:17]} 15. Qc1 {[%emt 0:00:01]} Qc7 {[%emt 0:00:18]} 16. c4 {[%emt 0:01:23]} h6 {[%emt 0:06:52]} 17. Bd2 {[%emt 0:00:05]} Nxd2 {[%emt 0:00:03]} 18. Nxd2 {[%emt 0:01:11]} Bxh2+ {[%emt 0:00:15]} 19. Kf1 {[%emt 0:00:18]} Nxd4 {[%emt 0:00:52]} 20. cxd5 {[%emt 0:00:05]} exd5 {[%emt 0:00:04]} 21. Qxc7 {[%emt 0:00:36]} Bxc7 {[%emt 0:00:02]} 22. Rxe8 {[%emt 0:00:06]} Rxe8 {[%emt 0:00:01]} 23. Nb3 {[%emt 0:00:02]} Bb6 {[%emt 0:01:02]} 24. Nxd4 {[%emt 0:01:14]} Bxd4 {[%emt 0:00:01]} 25. Bxf5 {[%emt 0:00:06]} Bxb2 {[%emt 0:00:02]} 26. Re1 {[%emt 0:00:01]} Rxe1+ {[%emt 0:00:23]} 27. Kxe1 {[%emt 0:00:02]} Kf7 {[%emt 0:00:02]} 28. Kd2 {[%emt 0:00:05]} Bd4 {[%emt 0:00:13]} 29. f3 {[%emt 0:00:12]} Kf6 {[%emt 0:00:21]} 30. Bc8 {[%emt 0:00:04]} b6 {[%emt 0:00:41]} 31. Bb7 {[%emt 0:00:15]} Ke5 {[%emt 0:00:03]} 32. a4 {[%emt 0:00:04]} Bc5 {[%emt 0:00:06]} 33. Kd3 {[%emt 0:00:02]} Kf4 {[%emt 0:00:18]} 34. Ke2 {[%emt 0:00:13]} Kg3 {[%emt 0:00:27]} 35. Kf1 {[%emt 0:00:02]} d4 {[%emt 0:00:02]} 36. Ba6 {[%emt 0:00:02]} g5 {[%emt 0:00:14]} 37. Bd3 {[%emt 0:01:28]} h5 {[%emt 0:00:03]} 38. Bg6 {[%emt 0:00:04]} h4 {[%emt 0:00:05]} 39. Be4 {[%emt 0:00:02]} a6 {[%emt 0:00:21]} 40. Bd3 {[%emt 0:00:02]} b5 {[%emt 0:01:46]} 41. axb5 {[%emt 0:00:01]} a5 {[%emt 0:00:01]} 42. Bc2 {[%emt 0:00:02]} Bb6 {[%emt 0:00:04]} 43. Bb3 {[%emt 0:00:22]} h3 {[%emt 0:01:29]} 44. gxh3 {[%emt 0:00:09]} Kxf3 {[%emt 0:00:01]} 45. Ke1 {[%emt 0:00:34]} a4 {[%emt 0:02:43]} 46. Bxa4 {[%emt 0:02:43]} Kg3 {[%emt 0:00:01]} 47. Bb3 {[%emt 0:00:04]} Kxh3 {[%emt 0:00:02]} 48. Be6+ {[%emt 0:00:01]} Kg3 {[%emt 0:00:17]} 49. Ke2 {[%emt 0:00:07]} Kf4 {[%emt 0:00:20]} 50. Bd7 {[%emt 0:00:28]} g4 {[%emt 0:00:17]} 51. Bc8 {[%emt 0:00:03]} Kg3 {[%emt 0:00:11]} 52. Be6 {[%emt 0:00:03]} Kh4 {[%emt 0:00:02]} 53. Bd5 {[%emt 0:00:05]} Ba7 {[%emt 0:00:19]} 54. Bc6 {[%emt 0:00:12]} Kh3 {[%emt 0:00:05]} 55. Bd7 {[%emt 0:00:01]} Kg3 {[%emt 0:00:02]} 56. Be6 {[%emt 0:00:02]} Kf4 {[%emt 0:00:12]} 57. Bc8 {[%emt 0:00:06]} Bb8 {[%emt 0:00:24]} 58. b6 {[%emt 0:00:14]} Kg3 {[%emt 0:00:13]} 59. Kd3 {[%emt 0:00:07]} Kf3 {[%emt 0:00:08]} 1/2-1/2

[Event "Szansa Chess Open 2022"]
[Site "Warsaw"]
[Date "2022.09.18"]
[Round "7"]
[White "Zochowski, Kacper"]
[Black "Warcaba, Jakub"]
[Result "1-0"]
[ECO "A05"]
[WhiteElo "2257"]
[BlackElo "1625"]
[Annotator "ChessBase"]
[PlyCount "65"]
[EventDate "2022.09.17"]
[EventCountry "POL"]
[SourceTitle "playchess.com"]
[Source "ChessBase"]
[SourceQuality "1"]
[TimeControl "900+10"]

1. Nf3 {[%emt 0:00:03]} Nf6 {[%emt 0:00:02]} 2. c4 {[%emt 0:00:00]} b6 {[%emt 0:00:20]} 3. g3 {[%emt 0:00:02]} e6 {[%emt 0:00:03]} 4. Bg2 {[%emt 0:00:01]} Bb7 {[%emt 0:00:01]} 5. O-O {[%emt 0:00:03]} c5 {[%emt 0:00:09]} 6. b3 {[%emt 0:00:03]} Be7 {[%emt 0:00:12]} 7. Bb2 {[%emt 0:00:01]} O-O {[%emt 0:00:04]} 8. e3 {[%emt 0:00:03]} d5 {[%emt 0:00:22]} 9. Qe2 {[%emt 0:00:08]} Nc6 {[%emt 0:00:17]} 10. d3 {[%emt 0:00:18]} Qc7 {[%emt 0:01:21]} 11. Nc3 {[%emt 0:00:03]} Rad8 {[%emt 0:00:20]} 12. Rac1 {[%emt 0:00:36]} dxc4 {[%emt 0:01:08]} 13. bxc4 {[%emt 0:00:02]} a6 {[%emt 0:00:45]} 14. Rcd1 {[%emt 0:00:06]} e5 {[%emt 0:00:56]} 15. Ne1 {[%emt 0:01:01]} Na5 {[%emt 0:02:44]} 16. g4 {[%emt 0:01:53]} Bxg2 {[%emt 0:00:32]} 17. Nxg2 {[%emt 0:00:02]} h6 {[%emt 0:01:30]} 18. h4 {[%emt 0:00:11]} Qd6 {[%emt 0:01:34]} 19. g5 {[%emt 0:00:12]} hxg5 {[%emt 0:00:04]} 20. hxg5 {[%emt 0:00:01]} Nh7 {[%emt 0:00:04]} 21. Ne4 {[%emt 0:00:18]} Qe6 {[%emt 0:00:09]} 22. f4 {[%emt 0:00:10]} exf4 {[%emt 0:00:39]} 23. Nxf4 {[%emt 0:00:20]} Qc6 {[%emt 0:00:31]} 24. Nd5 {[%emt 0:00:29]} Rxd5 {[%emt 0:00:33]} 25. cxd5 {[%emt 0:00:01]} Qxd5 {[%emt 0:00:02]} 26. Qg2 {[%emt 0:00:22]} Bxg5 {[%emt 0:00:19]} 27. Qh3 {[%emt 0:10:25]} Qxa2 {[%emt 0:03:33]} 28. Rd2 {[%emt 0:00:28]} Qe6 {[%emt 0:00:09]} 29. Qxh7+ {[%emt 0:00:05]} Kxh7 {[%emt 0:00:04]} 30. Nxg5+ {[%emt 0:00:01]} Kg8 {[%emt 0:00:03]} 31. Nxe6 {[%emt 0:00:02]} fxe6 {[%emt 0:00:02]} 32. Rxf8+ {[%emt 0:00:03]} Kxf8 {[%emt 0:00:01]} 33. Rf2+ {[%emt 0:00:06]} 1-0

[Event "Szansa Chess Open 2022"]
[Site "Warsaw"]
[Date "2022.09.18"]
[Round "7"]
[White "Fiszer, Bartosz"]
[Black "Kokoszczynski, Jan"]
[Result "0-1"]
[ECO "C80"]
[WhiteElo "2232"]
[BlackElo "2313"]
[Annotator "ChessBase"]
[PlyCount "112"]
[EventDate "2022.09.17"]
[EventCountry "POL"]
[SourceTitle "playchess.com"]
[Source "ChessBase"]
[SourceQuality "1"]
[TimeControl "900+10"]

1. e4 {[%emt 0:00:10]} e5 {[%emt 0:00:01]} 2. Nf3 {[%emt 0:00:00]} Nc6 {[%emt 0:00:01]} 3. Bb5 {[%emt 0:00:00]} a6 {[%emt 0:00:02]} 4. Ba4 {[%emt 0:00:00]} Nf6 {[%emt 0:00:02]} 5. O-O {[%emt 0:00:00]} Nxe4 {[%emt 0:00:01]} 6. d4 {[%emt 0:00:03]} Be7 {[%emt 0:00:02]} 7. Re1 {[%emt 0:00:21]} b5 {[%emt 0:00:03]} 8. Bb3 {[%emt 0:00:28]} d5 {[%emt 0:00:01]} 9. dxe5 {[%emt 0:00:10]} Be6 {[%emt 0:00:02]} 10. Nbd2 {[%emt 0:00:33]} Nc5 {[%emt 0:00:59]} 11. c3 {[%emt 0:00:35]} O-O {[%emt 0:00:22]} 12. Bc2 {[%emt 0:00:25]} d4 {[%emt 0:00:17]} 13. cxd4 {[%emt 0:02:17]} Nxd4 {[%emt 0:00:03]} 14. Nxd4 {[%emt 0:00:50]} Qxd4 {[%emt 0:00:01]} 15. Nf3 {[%emt 0:00:44]} Qxd1 {[%emt 0:01:07]} 16. Rxd1 {[%emt 0:00:02]} Rfd8 {[%emt 0:01:08]} 17. Bg5 {[%emt 0:00:32]} Bxg5 {[%emt 0:00:56]} 18. Nxg5 {[%emt 0:00:03]} h6 {[%emt 0:00:01]} 19. Ne4 {[%emt 0:04:35]} Nxe4 {[%emt 0:00:06]} 20. Bxe4 {[%emt 0:00:01]} Rab8 {[%emt 0:00:01]} 21. f4 {[%emt 0:01:20]} c5 {[%emt 0:01:58]} 22. Kf2 {[%emt 0:01:24]} g6 {[%emt 0:00:29]} 23. Ke3 {[%emt 0:00:58]} Kf8 {[%emt 0:00:29]} 24. Rac1 {[%emt 0:00:55]} c4 {[%emt 0:00:24]} 25. Rd4 {[%emt 0:01:32]} Ke7 {[%emt 0:00:24]} 26. Rcd1 {[%emt 0:00:14]} Rxd4 {[%emt 0:00:02]} 27. Rxd4 {[%emt 0:00:02]} Rb6 {[%emt 0:01:02]} 28. Bd5 {[%emt 0:01:12]} h5 {[%emt 0:00:51]} 29. Bxe6 {[%emt 0:00:20]} Kxe6 {[%emt 0:00:02]} 30. a3 {[%emt 0:00:09]} Rc6 {[%emt 0:00:46]} 31. Kd2 {[%emt 0:00:04]} a5 {[%emt 0:01:14]} 32. Kc3 {[%emt 0:00:09]} Kf5 {[%emt 0:00:13]} 33. g3 {[%emt 0:00:18]} Rc7 {[%emt 0:05:43]} 34. Rd5 {[%emt 0:00:09]} Rb7 {[%emt 0:00:00]} 35. Kd4 {[%emt 0:00:10]} Kg4 {[%emt 0:00:09]} 36. Kc5 {[%emt 0:00:02]} Kh3 {[%emt 0:00:31]} 37. Kc6 {[%emt 0:00:11]} Rb8 {[%emt 0:00:10]} 38. Kc7 {[%emt 0:00:09]} Ra8 {[%emt 0:00:06]} 39. Kb7 {[%emt 0:00:11]} Re8 {[%emt 0:00:13]} 40. Rd7 {[%emt 0:00:10]} Kxh2 {[%emt 0:00:04]} 41. Rxf7 {[%emt 0:00:02]} Kxg3 {[%emt 0:00:01]} 42. f5 {[%emt 0:00:13]} gxf5 {[%emt 0:00:11]} 43. Rxf5 {[%emt 0:00:01]} h4 {[%emt 0:00:01]} 44. Kc6 {[%emt 0:00:04]} b4 {[%emt 0:00:02]} 45. axb4 {[%emt 0:00:05]} axb4 {[%emt 0:00:00]} 46. Kd7 {[%emt 0:00:01]} Rb8 {[%emt 0:00:33]} 47. e6 {[%emt 0:00:08]} h3 {[%emt 0:00:41]} 48. Rg5+ {[%emt 0:00:12]} Kh4 {[%emt 0:00:39]} 49. Rc5 {[%emt 0:00:11]} c3 {[%emt 0:00:02]} 50. bxc3 {[%emt 0:00:43]} h2 {[%emt 0:00:02]} 51. Rc4+ {[%emt 0:00:20]} Kg3 {[%emt 0:00:06]} 52. Rxb4 {[%emt 0:00:04]} Rxb4 {[%emt 0:00:09]} 53. cxb4 {[%emt 0:00:02]} h1=Q {[%emt 0:00:01]} 54. e7 {[%emt 0:00:02]} Qd5+ {[%emt 0:00:03]} 55. Kc7 {[%emt 0:00:08]} Qe6 {[%emt 0:00:04]} 56. Kd8 {[%emt 0:00:02]} Qd6+ {[%emt 0:00:01]} 0-1

[Event "Szansa Chess Open 2022"]
[Site "Warsaw"]
[Date "2022.09.18"]
[Round "7"]
[White "Janeczko, Jakub"]
[Black "Kosakowski, Jakub"]
[Result "0-1"]
[ECO "B10"]
[WhiteElo "2159"]
[BlackElo "2457"]
[Annotator "ChessBase"]
[PlyCount "82"]
[EventDate "2022.09.17"]
[EventCountry "POL"]
[SourceTitle "playchess.com"]
[Source "ChessBase"]
[SourceQuality "1"]
[TimeControl "900+10"]

1. e4 {[%emt 0:00:03]} c6 {[%emt 0:00:04]} 2. Nc3 {[%emt 0:00:02]} d5 {[%emt 0:00:04]} 3. Nf3 {[%emt 0:00:02]} dxe4 {[%emt 0:00:08]} 4. Nxe4 {[%emt 0:00:05]} Nf6 {[%emt 0:00:03]} 5. Qe2 {[%emt 0:00:24]} Nxe4 {[%emt 0:00:14]} 6. Qxe4 {[%emt 0:00:02]} Nd7 {[%emt 0:00:25]} 7. Bc4 {[%emt 0:00:53]} Nf6 {[%emt 0:00:05]} 8. Ne5 {[%emt 0:00:36]} e6 {[%emt 0:00:04]} 9. Qe2 {[%emt 0:00:02]} b5 {[%emt 0:00:03]} 10. Bb3 {[%emt 0:00:14]} Qc7 {[%emt 0:00:30]} 11. d4 {[%emt 0:00:34]} Bd6 {[%emt 0:00:03]} 12. O-O {[%emt 0:00:03]} O-O {[%emt 0:00:13]} 13. a4 {[%emt 0:00:14]} bxa4 {[%emt 0:00:53]} 14. Bxa4 {[%emt 0:00:16]} c5 {[%emt 0:00:03]} 15. c3 {[%emt 0:03:21]} Bb7 {[%emt 0:00:39]} 16. Bf4 {[%emt 0:00:53]} Nd5 {[%emt 0:06:58]} 17. Bg3 {[%emt 0:00:03]} cxd4 {[%emt 0:00:51]} 18. cxd4 {[%emt 0:00:03]} Rac8 {[%emt 0:00:12]} 19. Rfe1 {[%emt 0:02:31]} Rfd8 {[%emt 0:00:11]} 20. Qg4 {[%emt 0:00:29]} Nf6 {[%emt 0:00:38]} 21. Qh3 {[%emt 0:00:51]} Ne4 {[%emt 0:01:45]} 22. Bb3 {[%emt 0:01:30]} Bd5 {[%emt 0:01:44]} 23. Bh4 {[%emt 0:01:45]} Re8 {[%emt 0:00:05]} 24. Ba4 {[%emt 0:00:17]} Bxe5 {[%emt 0:00:38]} 25. dxe5 {[%emt 0:01:29]} Rf8 {[%emt 0:00:02]} 26. Qg4 {[%emt 0:00:06]} Qxe5 {[%emt 0:00:21]} 27. Be7 {[%emt 0:00:02]} f5 {[%emt 0:00:18]} 28. Qe2 {[%emt 0:01:40]} Rf7 {[%emt 0:00:03]} 29. Bb4 {[%emt 0:00:02]} Qd4 {[%emt 0:00:15]} 30. Ba5 {[%emt 0:00:53]} Rb7 {[%emt 0:00:05]} 31. b4 {[%emt 0:00:25]} Nc3 {[%emt 0:00:24]} 32. Qb2 {[%emt 0:00:08]} Qg4 {[%emt 0:00:38]} 33. f3 {[%emt 0:00:13]} Bxf3 {[%emt 0:00:04]} 34. Bb3 {[%emt 0:00:09]} Bd5 {[%emt 0:00:14]} 35. Rxe6 {[%emt 0:00:08]} Qd4+ {[%emt 0:01:42]} 36. Kh1 {[%emt 0:00:03]} Bxb3 {[%emt 0:00:03]} 37. Qxb3 {[%emt 0:00:03]} Kh8 {[%emt 0:00:23]} 38. Rae1 {[%emt 0:00:03]} Ne4 {[%emt 0:00:06]} 39. Qc2 {[%emt 0:00:26]} Rbb8 {[%emt 0:00:07]} 40. Bc7 {[%emt 0:00:32]} Rxc7 {[%emt 0:00:09]} 41. R6xe4 {[%emt 0:00:12]} Qxe4 {[%emt 0:00:05]} 0-1